fUSD/lending_fUSD_20260625
["ID","MTS","AMOUNT","RATE_DAILY","PERIOD"]
[426384518,1782336741000,-9999.0,0.000318,7]
[426384525,1782336741000,-155.0,0.00031802,30]
[426384516,1782336741000,-151.97194395,0.00031789,7]
[426384523,1782336741000,-336.0,0.00031802,30]
[426384528,1782336741000,-208.0,0.00031802,30]
[426384527,1782336741000,-1559.0,0.00031802,30]
[426384537,1782336741000,-3446.25,0.000319,30]
[426384530,1782336741000,-5548.12599495,0.00031833,30]
[426384531,1782336741000,-959.43205316,0.00031844,30]
[426384532,1782336741000,-4000.0,0.00031858,14]
[426384533,1782336741000,-12500.0,0.00031875,2]
[426384517,1782336741000,-150.0,0.00031797,120]
[426384536,1782336741000,-15000.0,0.000319,2]
[426384534,1782336741000,-22500.0,0.00031875,2]
[426384535,1782336741000,-449.6,0.000319,120]
[426384538,1782336741000,-1970.67,0.000319,30]
[426384540,1782336741000,-2605.57279631,0.00031905,30]
[426384529,1782336741000,-1471.14,0.00031826,30]
[426384521,1782336741000,-401.68998842,0.000318,30]
[426384510,1782336741000,-1143.0,0.00031764,30]
[426384526,1782336741000,-1152.0,0.00031802,30]
[426384541,1782336741000,-1736.23,0.00031906,2]
[426384495,1782336741000,-500.0,0.00031725,2]
[426384499,1782336741000,-12500.0,0.0003175,2]
[426384500,1782336741000,-12500.0,0.0003175,2]
[426384501,1782336741000,-22500.0,0.0003175,2]
[426384498,1782336741000,-25000.0,0.0003175,2]
[426384496,1782336741000,-150.317311,0.00031731,52]
[426384497,1782336741000,-2500.0,0.0003175,2]
[426384503,1782336741000,-25000.0,0.0003175,2]
[426384524,1782336741000,-279.0,0.00031802,30]
[426384513,1782336741000,-150.0,0.0003178,120]
[426384504,1782336741000,-162.0,0.00031762,30]
[426384506,1782336741000,-222.0,0.00031762,30]
[426384507,1782336741000,-251.0,0.00031762,30]
[426384505,1782336741000,-733.0,0.00031762,30]
[426384511,1782336741000,-151.0,0.00031764,30]
[426384512,1782336741000,-55269.61812564,0.00031774,30]
[426384509,1782336741000,-464.0,0.00031762,30]
[426384508,1782336741000,-161.67652287,0.00031762,30]
[426384520,1782336741000,-4800.0,0.000318,11]
[426384502,1782336741000,-2500.0,0.0003175,2]
[426384514,1782336741000,-1139.48,0.00031781,7]
[426384550,1782336741000,-546.67,0.0003194,7]
[426384549,1782336741000,-3648.0,0.00031936,2]
[426384568,1782336741000,-1478.915538,0.00031961,7]
[426384570,1782336741000,-2002.035988,0.00031961,7]
[426384569,1782336741000,-1239.618132,0.00031961,7]
[426384572,1782336741000,-1478.915538,0.00031961,7]
[426384574,1782336741000,-163.037689,0.00031961,7]
[426384575,1782336741000,-157.42506,0.00031961,7]
[426384577,1782336741000,-295.945055,0.00031961,7]
[426384583,1782336741000,-157.42506,0.00031961,7]
[426384580,1782336741000,-163.037689,0.00031961,7]
[426384563,1782336741000,-801.352969,0.00031961,7]
[426384579,1782336741000,-157.42506,0.00031961,7]
[426384576,1782336741000,-2002.035988,0.00031961,7]
[426384581,1782336741000,-1239.618132,0.00031961,7]
[426384582,1782336741000,-151.0,0.00031961,7]
[426384585,1782336741000,-158.885528,0.00031961,7]
[426384584,1782336741000,-2002.035988,0.00031961,7]
[426384586,1782336741000,-1239.618132,0.00031961,7]
[426384587,1782336741000,-163.037689,0.00031961,7]
[426384588,1782336741000,-1800.881271,0.00031961,7]
[426384542,1782336741000,-1286.72,0.00031916,30]
[426384573,1782336741000,-1239.618132,0.00031961,7]
[426384564,1782336741000,-801.352969,0.00031961,7]
[426384578,1782336741000,-2002.035988,0.00031961,7]
[426384566,1782336741000,-1478.915538,0.00031961,7]
[426384545,1782336741000,-1361.0,0.00031936,2]
[426384565,1782336741000,-801.352969,0.00031961,7]
[426384547,1782336741000,-383.0,0.00031936,2]
[426384544,1782336741000,-7131.15095705,0.00031932,4]
[426384539,1782336741000,-3586.23,0.000319,30]
[426384548,1782336741000,-1229.0,0.00031936,2]
[426384546,1782336741000,-1277.0,0.00031936,2]
[426384552,1782336741000,-2439.08,0.00031945,30]
[426384551,1782336741000,-1005.99,0.00031945,7]
[426384553,1782336741000,-500.0,0.00031948,2]
[426384543,1782336741000,-150.0,0.00031917,120]
[426384555,1782336741000,-500.0,0.00031948,2]
[426384557,1782336741000,-500.0,0.00031948,2]
[426384556,1782336741000,-500.0,0.00031948,2]
[426384558,1782336741000,-166.84767246,0.00031948,2]
[426384559,1782336741000,-808.03099734,0.00031956,30]
[426384571,1782336741000,-157.42506,0.00031961,7]
[426384561,1782336741000,-1036334.2753888,0.00031961,2]
[426384560,1782336741000,-737.9149075,0.00031961,2]
[426384554,1782336741000,-500.0,0.00031948,2]
[426384562,1782336741000,-801.352969,0.00031961,7]
[426384567,1782336741000,-1478.915538,0.00031961,7]
[426384628,1782336742000,-430.449785,0.00031961,7]
[426384621,1782336742000,-1297.28405,0.00031961,7]
[426384630,1782336742000,-151.0,0.00031961,7]
[426384627,1782336742000,-1297.28405,0.00031961,7]
[426384631,1782336742000,-2132.554757,0.00031961,7]
[426384626,1782336742000,-722.039739,0.00031961,7]
[426384624,1782336742000,-2132.554757,0.00031961,7]
[426384622,1782336742000,-430.449785,0.00031961,7]
[426384623,1782336742000,-285.102722,0.00031961,7]
[426384629,1782336742000,-285.102722,0.00031961,7]
[426384620,1782336742000,-722.039739,0.00031961,7]
[426384625,1782336742000,-1511.313423,0.00031961,7]
[426384632,1782336742000,-722.039739,0.00031961,7]
[426384638,1782336742000,-151.0,0.00031961,7]
[426384645,1782336742000,-151.0,0.00031961,7]
[426384644,1782336742000,-207.784733,0.00031961,7]
[426384635,1782336742000,-285.102722,0.00031961,7]
[426384637,1782336742000,-151.0,0.00031961,7]
[426384633,1782336742000,-1297.28405,0.00031961,7]
[426384636,1782336742000,-2132.554757,0.00031961,7]
[426384642,1782336742000,-151.0,0.00031961,7]
[426384641,1782336742000,-420.003591,0.00031961,7]
[426384640,1782336742000,-151.0,0.00031961,7]
[426384643,1782336742000,-151.0,0.00031961,7]
[426384639,1782336742000,-151.0,0.00031961,7]
[426384614,1782336742000,-151.0,0.00031961,7]
[426384634,1782336742000,-430.449785,0.00031961,7]
[426384616,1782336742000,-825.021755,0.00031961,7]
[426384590,1782336742000,-1340.578624,0.00031961,7]
[426384615,1782336742000,-151.0,0.00031961,7]
[426384646,1782336742000,-151.0,0.00031961,7]
[426384595,1782336742000,-151.0,0.00031961,7]
[426384593,1782336742000,-163.037689,0.00031961,7]
[426384592,1782336742000,-158.885528,0.00031961,7]
[426384589,1782336742000,-825.021755,0.00031961,7]
[426384591,1782336742000,-289.000199,0.00031961,7]
[426384594,1782336742000,-1800.881271,0.00031961,7]
[426384596,1782336742000,-825.021755,0.00031961,7]
[426384598,1782336742000,-1511.313423,0.00031961,7]
[426384599,1782336742000,-1340.578624,0.00031961,7]
[426384600,1782336742000,-158.885528,0.00031961,7]
[426384597,1782336742000,-151.0,0.00031961,7]
[426384602,1782336742000,-151.0,0.00031961,7]
[426384601,1782336742000,-1800.881271,0.00031961,7]
[426384603,1782336742000,-151.0,0.00031961,7]
[426384604,1782336742000,-825.021755,0.00031961,7]
[426384606,1782336742000,-151.0,0.00031961,7]
[426384605,1782336742000,-1511.313423,0.00031961,7]
[426384607,1782336742000,-1340.578624,0.00031961,7]
[426384618,1782336742000,-2132.554757,0.00031961,7]
[426384608,1782336742000,-722.039739,0.00031961,7]
[426384619,1782336742000,-1340.578624,0.00031961,7]
[426384610,1782336742000,-430.449785,0.00031961,7]
[426384609,1782336742000,-1297.28405,0.00031961,7]
[426384611,1782336742000,-285.102722,0.00031961,7]
[426384617,1782336742000,-1511.313423,0.00031961,7]
[426384613,1782336742000,-1800.881271,0.00031961,7]
[426384612,1782336742000,-158.885528,0.00031961,7]
[426384648,1782336742000,-151.0,0.00031961,7]
[426384690,1782336742000,-950.714608,0.00031961,7]
[426384650,1782336742000,-207.784733,0.00031961,7]
[426384676,1782336742000,-194.421703,0.00031961,7]
[426384683,1782336742000,-194.421703,0.00031961,7]
[426384693,1782336742000,-664.063087,0.00031961,7]
[426384682,1782336742000,-151.0,0.00031961,7]
[426384684,1782336742000,-1467.481589,0.00031961,7]
[426384685,1782336742000,-527.133319,0.00031961,7]
[426384689,1782336742000,-194.421703,0.00031961,7]
[426384687,1782336742000,-1467.481589,0.00031961,7]
[426384688,1782336742000,-527.133319,0.00031961,7]
[426384686,1782336742000,-151.0,0.00031961,7]
[426384708,1782336742000,-151.0,0.00031961,7]
[426384692,1782336742000,-950.714608,0.00031961,7]
[426384691,1782336742000,-1467.481589,0.00031961,7]
[426384694,1782336742000,-950.714608,0.00031961,7]
[426384696,1782336742000,-921.50581,0.00031961,7]
[426384698,1782336742000,-950.714608,0.00031961,7]
[426384695,1782336742000,-151.0,0.00031961,7]
[426384697,1782336742000,-664.063087,0.00031961,7]
[426384699,1782336742000,-151.0,0.00031961,7]
[426384703,1782336742000,-160.071756,0.00031961,7]
[426384701,1782336742000,-803.577437,0.00031961,7]
[426384702,1782336742000,-664.063087,0.00031961,7]
[426384705,1782336742000,-921.50581,0.00031961,7]
[426384704,1782336742000,-151.0,0.00031961,7]
[426384700,1782336742000,-921.50581,0.00031961,7]
[426384707,1782336742000,-664.063087,0.00031961,7]
[426384706,1782336742000,-803.577437,0.00031961,7]
[426384677,1782336742000,-527.133319,0.00031961,7]
[426384678,1782336742000,-418.611886,0.00031961,7]
[426384649,1782336742000,-420.003591,0.00031961,7]
[426384680,1782336742000,-527.133319,0.00031961,7]
[426384675,1782336742000,-418.611886,0.00031961,7]
[426384647,1782336742000,-151.0,0.00031961,7]
[426384651,1782336742000,-246.895939,0.00031961,7]
[426384652,1782336742000,-274.389312,0.00031961,7]
[426384658,1782336742000,-207.784733,0.00031961,7]
[426384654,1782336742000,-2022.317623,0.00031961,7]
[426384653,1782336742000,-151.0,0.00031961,7]
[426384656,1782336742000,-151.0,0.00031961,7]
[426384657,1782336742000,-420.003591,0.00031961,7]
[426384660,1782336742000,-274.389312,0.00031961,7]
[426384659,1782336742000,-2022.317623,0.00031961,7]
[426384669,1782336742000,-151.0,0.00031961,7]
[426384662,1782336742000,-420.003591,0.00031961,7]
[426384655,1782336742000,-151.0,0.00031961,7]
[426384668,1782336742000,-151.0,0.00031961,7]
[426384661,1782336742000,-207.784733,0.00031961,7]
[426384681,1782336742000,-1467.481589,0.00031961,7]
[426384674,1782336742000,-187.19226,0.00031961,7]
[426384673,1782336742000,-151.0,0.00031961,7]
[426384671,1782336742000,-151.0,0.00031961,7]
[426384670,1782336742000,-418.611886,0.00031961,7]
[426384672,1782336742000,-418.611886,0.00031961,7]
[426384679,1782336742000,-194.421703,0.00031961,7]
[426384666,1782336742000,-2022.317623,0.00031961,7]
[426384665,1782336742000,-274.389312,0.00031961,7]
[426384664,1782336742000,-274.389312,0.00031961,7]
[426384663,1782336742000,-2022.317623,0.00031961,7]
[426384667,1782336742000,-151.0,0.00031961,7]
[426384750,1782336743000,-206.266221,0.00031961,7]
[426384749,1782336743000,-271.927537,0.00031961,7]
[426384752,1782336743000,-271.38903,0.00031961,7]
[426384753,1782336743000,-151.0,0.00031961,7]
[426384747,1782336743000,-271.38903,0.00031961,7]
[426384738,1782336743000,-3015.981662,0.00031961,7]
[426384744,1782336743000,-206.266221,0.00031961,7]
[426384746,1782336743000,-1728.989069,0.00031961,7]
[426384745,1782336743000,-271.927537,0.00031961,7]
[426384742,1782336743000,-151.0,0.00031961,7]
[426384751,1782336743000,-661.177634,0.00031961,7]
[426384743,1782336743000,-2466.906187,0.00031961,7]
[426384748,1782336743000,-2466.906187,0.00031961,7]
[426384768,1782336743000,-151.0,0.00031961,7]
[426384765,1782336743000,-272.29871,0.00031961,7]
[426384756,1782336743000,-661.177634,0.00031961,7]
[426384754,1782336743000,-661.177634,0.00031961,7]
[426384757,1782336743000,-151.0,0.00031961,7]
[426384759,1782336743000,-271.38903,0.00031961,7]
[426384763,1782336743000,-1429.570317,0.00031961,7]
[426384761,1782336743000,-151.0,0.00031961,7]
[426384762,1782336743000,-661.177634,0.00031961,7]
[426384764,1782336743000,-151.0,0.00031961,7]
[426384758,1782336743000,-1429.570317,0.00031961,7]
[426384760,1782336743000,-151.0,0.00031961,7]
[426384766,1782336743000,-151.0,0.00031961,7]
[426384739,1782336743000,-271.38903,0.00031961,7]
[426384755,1782336743000,-151.0,0.00031961,7]
[426384734,1782336743000,-271.927537,0.00031961,7]
[426384727,1782336743000,-271.927537,0.00031961,7]
[426384732,1782336743000,-1728.989069,0.00031961,7]
[426384769,1782336743000,-151.0,0.00031961,7]
[426384709,1782336743000,-779.83154,0.00031961,7]
[426384714,1782336743000,-151.0,0.00031961,7]
[426384712,1782336743000,-602.404501,0.00031961,7]
[426384713,1782336743000,-803.577437,0.00031961,7]
[426384716,1782336743000,-779.83154,0.00031961,7]
[426384711,1782336743000,-151.0,0.00031961,7]
[426384715,1782336743000,-3015.981662,0.00031961,7]
[426384717,1782336743000,-416.247576,0.00031961,7]
[426384720,1782336743000,-803.577437,0.00031961,7]
[426384724,1782336743000,-1728.989069,0.00031961,7]
[426384719,1782336743000,-602.404501,0.00031961,7]
[426384718,1782336743000,-151.0,0.00031961,7]
[426384721,1782336743000,-3015.981662,0.00031961,7]
[426384722,1782336743000,-151.0,0.00031961,7]
[426384729,1782336743000,-2466.906187,0.00031961,7]
[426384725,1782336743000,-416.247576,0.00031961,7]
[426384726,1782336743000,-602.404501,0.00031961,7]
[426384728,1782336743000,-206.266221,0.00031961,7]
[426384723,1782336743000,-779.83154,0.00031961,7]
[426384741,1782336743000,-416.247576,0.00031961,7]
[426384731,1782336743000,-779.83154,0.00031961,7]
[426384730,1782336743000,-3015.981662,0.00031961,7]
[426384733,1782336743000,-602.404501,0.00031961,7]
[426384735,1782336743000,-416.247576,0.00031961,7]
[426384736,1782336743000,-206.266221,0.00031961,7]
[426384740,1782336743000,-1728.989069,0.00031961,7]
[426384737,1782336743000,-2466.906187,0.00031961,7]
[426384767,1782336743000,-1429.570317,0.00031961,7]
[426384710,1782336743000,-921.50581,0.00031961,7]
[426384773,1782336743000,-3218.726661,0.00031961,7]
[426384798,1782336743000,-151.0,0.00031961,7]
[426384803,1782336743000,-685.409696,0.00031961,7]
[426384806,1782336743000,-668.292804,0.00031961,7]
[426384807,1782336743000,-384.504433,0.00031961,7]
[426384808,1782336743000,-548.348859,0.00031961,7]
[426384817,1782336743000,-220.861309,0.00031961,7]
[426384809,1782336743000,-537.68872,0.00031961,7]
[426384810,1782336743000,-685.409696,0.00031961,7]
[426384813,1782336743000,-384.504433,0.00031961,7]
[426384816,1782336743000,-403.274955,0.00031961,7]
[426384812,1782336743000,-668.292804,0.00031961,7]
[426384811,1782336743000,-4665.291961,0.00031961,7]
[426384814,1782336743000,-537.68872,0.00031961,7]
[426384815,1782336743000,-685.409696,0.00031961,7]
[426384819,1782336743000,-384.504433,0.00031961,7]
[426384820,1782336743000,-4665.291961,0.00031961,7]
[426384818,1782336743000,-668.292804,0.00031961,7]
[426384822,1782336743000,-205.73904,0.00031961,7]
[426384828,1782336743000,-205.73904,0.00031961,7]
[426384829,1782336743000,-994.633398,0.00031961,7]
[426384823,1782336743000,-582.820653,0.00031961,7]
[426384821,1782336743000,-3564.17303,0.00031961,7]
[426384824,1782336743000,-220.861309,0.00031961,7]
[426384827,1782336743000,-3564.17303,0.00031961,7]
[426384825,1782336743000,-384.504433,0.00031961,7]
[426384826,1782336743000,-403.274955,0.00031961,7]
[426384831,1782336743000,-220.861309,0.00031961,7]
[426384794,1782336743000,-151.0,0.00031961,7]
[426384801,1782336743000,-537.68872,0.00031961,7]
[426384830,1782336743000,-582.820653,0.00031961,7]
[426384804,1782336743000,-4665.291961,0.00031961,7]
[426384802,1782336743000,-151.0,0.00031961,7]
[426384774,1782336743000,-3218.726661,0.00031961,7]
[426384778,1782336743000,-172.260563,0.00031961,7]
[426384772,1782336743000,-3218.726661,0.00031961,7]
[426384777,1782336743000,-395.100517,0.00031961,7]
[426384775,1782336743000,-3218.726661,0.00031961,7]
[426384770,1782336743000,-1429.570317,0.00031961,7]
[426384771,1782336743000,-293.369398,0.00031961,7]
[426384780,1782336743000,-395.100517,0.00031961,7]
[426384792,1782336743000,-548.348859,0.00031961,7]
[426384790,1782336743000,-289.432893,0.00031961,7]
[426384789,1782336743000,-548.348859,0.00031961,7]
[426384779,1782336743000,-151.0,0.00031961,7]
[426384791,1782336743000,-151.0,0.00031961,7]
[426384776,1782336743000,-172.260563,0.00031961,7]
[426384783,1782336743000,-283.585922,0.00031961,7]
[426384784,1782336743000,-395.100517,0.00031961,7]
[426384800,1782336743000,-548.348859,0.00031961,7]
[426384805,1782336743000,-151.0,0.00031961,7]
[426384799,1782336743000,-668.292804,0.00031961,7]
[426384796,1782336743000,-151.0,0.00031961,2]
[426384795,1782336743000,-685.409696,0.00031961,7]
[426384797,1782336743000,-4665.291961,0.00031961,7]
[426384785,1782336743000,-172.260563,0.00031961,7]
[426384788,1782336743000,-151.0,0.00031961,7]
[426384786,1782336743000,-151.0,0.00031961,7]
[426384782,1782336743000,-151.0,0.00031961,7]
[426384781,1782336743000,-172.260563,0.00031961,7]
[426384787,1782336743000,-395.100517,0.00031961,7]
[426384793,1782336743000,-537.68872,0.00031961,7]
[426384875,1782336744000,-608.678247,0.00031961,7]
[426384874,1782336744000,-1004.094896,0.00031961,7]
[426384868,1782336744000,-1271.379986,0.00031961,7]
[426384873,1782336744000,-1271.379986,0.00031961,7]
[426384870,1782336744000,-1271.379986,0.00031961,7]
[426384865,1782336744000,-269.83817,0.00031961,7]
[426384872,1782336744000,-306.557821,0.00031961,7]
[426384867,1782336744000,-306.557821,0.00031961,7]
[426384866,1782336744000,-2837.105427,0.00031961,7]
[426384863,1782336744000,-777.513688,0.00031961,7]
[426384871,1782336744000,-608.678247,0.00031961,7]
[426384876,1782336744000,-306.557821,0.00031961,7]
[426384882,1782336744000,-1334.108409,0.00031961,7]
[426384877,1782336744000,-1271.379986,0.00031961,7]
[426384879,1782336744000,-608.678247,0.00031961,7]
[426384885,1782336744000,-1334.108409,0.00031961,7]
[426384881,1782336744000,-151.0,0.00031961,7]
[426384864,1782336744000,-711.707705,0.00031961,7]
[426384883,1782336744000,-1004.094896,0.00031961,7]
[426384889,1782336744000,-956.677506,0.00031961,7]
[426384880,1782336744000,-608.678247,0.00031961,7]
[426384878,1782336744000,-1004.094896,0.00031961,7]
[426384884,1782336744000,-956.677506,0.00031961,7]
[426384887,1782336744000,-956.677506,0.00031961,7]
[426384886,1782336744000,-1004.094896,0.00031961,7]
[426384888,1782336744000,-1334.108409,0.00031961,7]
[426384869,1782336744000,-306.557821,0.00031961,7]
[426384861,1782336744000,-2837.105427,0.00031961,7]
[426384846,1782336744000,-220.861309,0.00031961,7]
[426384857,1782336744000,-994.633398,0.00031961,7]
[426384890,1782336744000,-1334.108409,0.00031961,7]
[426384841,1782336744000,-777.513688,0.00031961,7]
[426384834,1782336744000,-205.73904,0.00031961,7]
[426384833,1782336744000,-3564.17303,0.00031961,7]
[426384832,1782336744000,-403.274955,0.00031961,7]
[426384837,1782336744000,-403.274955,0.00031961,7]
[426384838,1782336744000,-3564.17303,0.00031961,7]
[426384840,1782336744000,-306.24419,0.00031961,7]
[426384835,1782336744000,-583.514946,0.00031961,7]
[426384836,1782336744000,-582.820653,0.00031961,7]
[426384839,1782336744000,-205.73904,0.00031961,7]
[426384842,1782336744000,-994.633398,0.00031961,7]
[426384844,1782336744000,-711.707705,0.00031961,7]
[426384849,1782336744000,-777.513688,0.00031961,7]
[426384845,1782336744000,-583.514946,0.00031961,7]
[426384843,1782336744000,-582.820653,0.00031961,7]
[426384850,1782336744000,-994.633398,0.00031961,7]
[426384852,1782336744000,-711.707705,0.00031961,7]
[426384848,1782336744000,-306.24419,0.00031961,7]
[426384853,1782336744000,-190.772781,0.00031961,7]
[426384854,1782336744000,-2837.105427,0.00031961,7]
[426384851,1782336744000,-583.514946,0.00031961,7]
[426384856,1782336744000,-777.513688,0.00031961,7]
[426384855,1782336744000,-306.24419,0.00031961,7]
[426384859,1782336744000,-583.514946,0.00031961,7]
[426384858,1782336744000,-151.0,0.00031961,7]
[426384860,1782336744000,-711.707705,0.00031961,7]
[426384862,1782336744000,-306.24419,0.00031961,7]
[426384847,1782336744000,-2837.105427,0.00031961,7]
[426384892,1782336744000,-151.0,0.00031961,7]
[426384894,1782336744000,-164.019937,0.00031961,7]
[426384925,1782336744000,-151.0,0.00031961,7]
[426384922,1782336744000,-1755.289696,0.00031961,7]
[426384926,1782336744000,-1402.087798,0.00031961,7]
[426384929,1782336744000,-151.0,0.00031961,7]
[426384932,1782336744000,-1402.087798,0.00031961,7]
[426384939,1782336744000,-151.0,0.00031961,7]
[426384928,1782336744000,-320.966012,0.00031961,7]
[426384930,1782336744000,-3470.051525,0.00031961,7]
[426384937,1782336744000,-151.0,0.00031961,7]
[426384933,1782336744000,-312.29402,0.00031961,7]
[426384938,1782336744000,-1402.087798,0.00031961,7]
[426384935,1782336744000,-320.966012,0.00031961,7]
[426384936,1782336744000,-161.463466,0.00031961,7]
[426384934,1782336744000,-439.043272,0.00031961,7]
[426384940,1782336744000,-312.29402,0.00031961,7]
[426384942,1782336744000,-320.966012,0.00031961,7]
[426384943,1782336744000,-161.463466,0.00031961,7]
[426384951,1782336744000,-398.384101,0.00031961,7]
[426384950,1782336744000,-439.043272,0.00031961,7]
[426384945,1782336744000,-398.384101,0.00031961,7]
[426384948,1782336744000,-356.014,0.00031961,7]
[426384944,1782336744000,-182.957286,0.00031961,7]
[426384946,1782336744000,-1402.087798,0.00031961,7]
[426384941,1782336744000,-439.043272,0.00031961,7]
[426384947,1782336744000,-312.29402,0.00031961,7]
[426384949,1782336744000,-320.966012,0.00031961,7]
[426384896,1782336744000,-491.684414,0.00031961,7]
[426384921,1782336744000,-3470.051525,0.00031961,7]
[426384924,1782336744000,-3470.051525,0.00031961,7]
[426384931,1782336744000,-151.0,0.00031961,7]
[426384923,1782336744000,-428.898301,0.00031961,7]
[426384893,1782336744000,-1075.599968,0.00031961,7]
[426384927,1782336744000,-439.043272,0.00031961,7]
[426384895,1782336744000,-1283.333472,0.00031961,7]
[426384899,1782336744000,-151.0,0.00031961,7]
[426384902,1782336744000,-1283.333472,0.00031961,7]
[426384891,1782336744000,-956.677506,0.00031961,7]
[426384897,1782336744000,-1075.599968,0.00031961,7]
[426384900,1782336744000,-164.019937,0.00031961,7]
[426384901,1782336744000,-1755.289696,0.00031961,7]
[426384904,1782336744000,-1075.599968,0.00031961,7]
[426384915,1782336744000,-3470.051525,0.00031961,7]
[426384914,1782336744000,-491.684414,0.00031961,7]
[426384903,1782336744000,-491.684414,0.00031961,7]
[426384905,1782336744000,-151.0,0.00031961,7]
[426384898,1782336744000,-151.0,0.00031961,7]
[426384920,1782336744000,-491.684414,0.00031961,7]
[426384919,1782336744000,-428.898301,0.00031961,7]
[426384906,1782336744000,-428.898301,0.00031961,7]
[426384917,1782336744000,-1755.289696,0.00031961,7]
[426384916,1782336744000,-164.019937,0.00031961,7]
[426384918,1782336744000,-1283.333472,0.00031961,7]
[426384910,1782336744000,-164.019937,0.00031961,7]
[426384913,1782336744000,-428.898301,0.00031961,7]
[426384911,1782336744000,-1075.599968,0.00031961,7]
[426384909,1782336744000,-1283.333472,0.00031961,7]
[426384908,1782336744000,-1755.289696,0.00031961,7]
[426384907,1782336744000,-151.0,0.00031961,7]
[426384912,1782336744000,-215.240629,0.00031961,7]
[426384993,1782336745000,-240.988432,0.00031961,7]
[426384999,1782336745000,-240.988432,0.00031961,7]
[426384990,1782336745000,-723.430219,0.00031961,7]
[426384992,1782336745000,-723.430219,0.00031961,7]
[426384995,1782336745000,-723.430219,0.00031961,7]
[426384986,1782336745000,-151.0,0.00031961,7]
[426384988,1782336745000,-552.345332,0.00031961,7]
[426384984,1782336745000,-552.345332,0.00031961,7]
[426384985,1782336745000,-526.974204,0.00031961,7]
[426384983,1782336745000,-526.974204,0.00031961,7]
[426384998,1782336745000,-350.126626,0.00031961,7]
[426384989,1782336745000,-552.345332,0.00031961,7]
[426384994,1782336745000,-1817.994151,0.00031961,7]
[426385010,1782336745000,-497.562277,0.00031961,7]
[426384996,1782336745000,-240.988432,0.00031961,7]
[426384991,1782336745000,-723.430219,0.00031961,7]
[426385001,1782336745000,-350.126626,0.00031961,7]
[426385002,1782336745000,-240.988432,0.00031961,7]
[426385005,1782336745000,-346.950442,0.00031961,7]
[426385003,1782336745000,-1817.994151,0.00031961,7]
[426385004,1782336745000,-350.126626,0.00031961,7]
[426385006,1782336745000,-350.126626,0.00031961,7]
[426385000,1782336745000,-1817.994151,0.00031961,7]
[426385011,1782336745000,-151.0,0.00031961,7]
[426385007,1782336745000,-165.810895,0.00031961,7]
[426385009,1782336745000,-151.0,0.00031961,7]
[426384980,1782336745000,-151.0,0.00031961,7]
[426384997,1782336745000,-1817.994151,0.00031961,7]
[426384981,1782336745000,-526.974204,0.00031961,7]
[426385008,1782336745000,-346.950442,0.00031961,7]
[426384982,1782336745000,-526.974204,0.00031961,7]
[426384952,1782336745000,-161.463466,0.00031961,7]
[426384957,1782336745000,-161.463466,0.00031961,7]
[426384955,1782336745000,-398.384101,0.00031961,7]
[426384958,1782336745000,-356.014,0.00031961,7]
[426384953,1782336745000,-312.29402,0.00031961,7]
[426384961,1782336745000,-769.628488,0.00031961,7]
[426384956,1782336745000,-769.628488,0.00031961,7]
[426384959,1782336745000,-543.455229,0.00031961,7]
[426384960,1782336745000,-398.384101,0.00031961,7]
[426384962,1782336745000,-638.758113,0.00031961,7]
[426384954,1782336745000,-356.014,0.00031961,7]
[426384963,1782336745000,-237.617314,0.00031961,7]
[426384965,1782336745000,-356.014,0.00031961,7]
[426384979,1782336745000,-639.397884,0.00031961,7]
[426384966,1782336745000,-769.628488,0.00031961,7]